[Event "44th Chess Olympiad Open 2022"]
[Site "Chennai"]
[Date "2022.08.06"]
[Round "8.34"]
[White "Wong, Zhenyong Jayden"]
[Black "Ilkhomi, Jaloliddin"]
[Result "0-1"]
[WhiteElo "2163"]
[BlackElo "2076"]
[Annotator "NA RC"]
[PlyCount "82"]
[EventDate "2022.??.??"]
[TimeControl "60"]

1. d4 {[%emt 0:00:03]} Nf6 {[%emt 0:00:09]} 2. c4 {[%emt 0:00:07]} e6 {[%emt 0:
00:00]} 3. g3 {[%emt 0:00:06]} Bb4+ {[%emt 0:02:21]} 4. Nd2 {[%emt 0:00:28]}
Ne4 {[%emt 0:00:34]} 5. Bg2 {[%emt 0:02:05]} Nxd2 {[%emt 0:01:01]} 6. Bxd2 {
[%emt 0:00:06]} Qe7 {[%emt 0:01:16]} 7. Nf3 {[%emt 0:08:58]} O-O {[%emt 0:00:
00]} 8. O-O {[%emt 0:01:51]} Bxd2 {[%emt 0:02:15]} 9. Qxd2 {[%emt 0:02:13]} d6
{[%emt 0:02:29]} 10. e4 {[%emt 0:05:05]} e5 {[%emt 0:00:36]} 11. b4 {[%emt 0:
00:00]} Bg4 {[%emt 0:01:41]} 12. d5 {[%emt 0:01:09]} Nd7 {[%emt 0:14:22]} 13.
Qe3 {[%emt 0:09:40]} a5 {[%emt 0:09:00]} 14. a3 {[%emt 0:00:20]} Rfb8 {[%emt 0:
00:00]} 15. Nd2 {[%emt 0:03:35]} c5 {[%emt 0:04:56]} 16. f3 {[%emt 0:03:05]}
Bh5 {[%emt 0:00:12]} 17. Bh3 {[%emt 0:07:59]} axb4 {[%emt 0:06:45]} 18. axb4 {
[%emt 0:05:36]} b6 {[%emt 0:01:37]} 19. b5 {[%emt 0:01:44]} Rxa1 {[%emt 0:00:
00]} 20. Rxa1 {[%emt 0:00:05]} Nf8 {[%emt 0:00:14]} 21. Ra6 {[%emt 0:02:54]} f6
{[%emt 0:00:59]} 22. Qa3 {[%emt 0:01:14]} Be8 {[%emt 0:01:40]} 23. Nb1 {
[%emt 0:06:23]} Bd7 {[%emt 0:00:48]} 24. Ra7 {[%emt 0:01:06]} Qd8 {[%emt 0:00:
00]} 25. Bxd7 {[%emt 0:01:36]} Nxd7 {[%emt 0:00:02]} 26. Nc3 {[%emt 0:01:19]}
Kf8 {[%emt 0:02:06]} 27. Qa6 {[%emt 0:03:23]} Ke8 {[%emt 0:01:42]} 28. Kf2 {
[%emt 0:02:25]} h5 {[%emt 0:05:31]} 29. Ke2 {[%emt 0:01:44]} g6 {[%emt 0:04:23]
} 30. Na4 {[%emt 0:02:56]} f5 {[%emt 0:06:22]} 31. exf5 {[%emt 0:05:12]} gxf5 {
[%emt 0:00:10]} 32. Nc3 {[%emt 0:02:27]} h4 {[%emt 0:01:38]} 33. Qa1 {[%emt 0:
00:00]} Qg5 {[%emt 0:01:04]} 34. Kf2 {[%emt 0:02:40]} Ke7 {[%emt 0:00:51]} 35.
Ra8 {[%emt 0:03:36]} Rxa8 {[%emt 0:05:20]} 36. Qxa8 {[%emt 0:00:05]} hxg3+ {
[%emt 0:00:58]} 37. hxg3 {[%emt 0:00:05]} Qd2+ {[%emt 0:02:42]} 38. Ne2 {
[%emt 0:00:04]} e4 {[%emt 0:00:03]} 39. Qa1 {[%emt 0:06:13]} Ne5 {[%emt 0:00:
00]} 40. f4 {[%emt 0:01:01]} Ng4+ {[%emt 0:00:58]} 41. Kf1 {[%emt 0:01:09]} Kf7
{[%emt 0:00:37]} 0-1

[Event "44th Chess Olympiad Open 2022"]
[Site "Chennai"]
[Date "2022.08.06"]
[Round "8.35"]
[White "Ibarra Chami, Luis Fernando"]
[Black "Kwon, Sehyun"]
[Result "1/2-1/2"]
[WhiteElo "2452"]
[BlackElo "2225"]
[Annotator "TA"]
[PlyCount "94"]
[EventDate "2022.??.??"]
[TimeControl "60"]

{[%evp 9,94,19,24,6,20,10,-1,-33,-13,-17,-3,-16,18,7,7,7,9,0,22,10,24,-5,28,28,
44,20,56,52,87,0,0,0,40,45,49,56,54,0,9,0,0,8,31,6,140,123,127,124,139,138,128,
62,57,61,51,51,51,66,50,34,37,35,44,23,26,8,12,12,12,12,16,16,15,3,12,12,12,12,
12,12,12,15,15,0,0,0,4]} 1. e4 {[%emt 0:00:11]} e5 {[%emt 0:00:44]} 2. Nf3 {
[%emt 0:00:16]} Nc6 {[%emt 0:00:12]} 3. Bb5 {[%emt 0:00:32]} a6 {[%emt 0:01:02]
} 4. Ba4 {[%emt 0:00:14]} Nf6 {[%emt 0:00:06]} 5. d3 {[%emt 0:02:51]} d6 {
[%emt 0:04:45]} 6. a3 {[%emt 0:06:47] C77: Ruy Lopez: 3...a6 4 Ba4 Nf6,
unusual lines.} g6 {[%emt 0:03:05]} (6... b5 $5 7. Bb3 Be7 $11) 7. Nc3 {
[%emt 0:09:18]} Bg7 {[%emt 0:03:07] [#]} 8. d4 $146 {[%emt 0:07:48]} ({
Predecessor:} 8. h3 O-O 9. Bb3 h6 10. Be3 Nd7 11. Qd2 Kh7 12. h4 Nc5 13. h5 g5
14. Bd5 {0-1 (30) Abergel,T (2444)-Sosa,T (2529) Los Cancajos 2020}) 8... exd4
{[%emt 0:04:03]} 9. Nxd4 {[%emt 0:02:15]} Bd7 {[%emt 0:00:20]} 10. Nxc6 {
[%emt 0:01:50]} bxc6 {[%emt 0:02:40]} 11. O-O {[%emt 0:01:41]} O-O {[%emt 0:00:
00]} 12. Bg5 {[%emt 0:03:09][%cal Ye4e5] Black must now prevent e5!} Re8 {
[%emt 0:18:26]} 13. Re1 {[%emt 0:07:57][%cal Ye4e5]} (13. f3 {is more complex.}
Qb8 14. Qd2 Be6 15. Be3) 13... Qb8 {[%emt 0:15:25]} 14. Rb1 {[%emt 0:20:29]} h6
{[%emt 0:05:16]} 15. Bh4 {[%emt 0:02:54]} Qb7 {[%emt 0:15:34]} 16. f4 {[%emt 0:
00:00]} (16. e5 Nh5 $11) 16... Qb6+ {[%emt 0:06:00]} 17. Kh1 {[%emt 0:01:36]} (
17. Bf2 $5 {[%cal Rf2b6]} Qb7 18. h3 $14) 17... Ng4 {[%emt 0:04:01][%cal Yg6g5]
} 18. Qf3 {[%emt 0:07:51]} Qa5 {[%emt 0:02:03] Against Nd5. Strongly
threatening ...Bxc3.} 19. Bb3 {[%emt 0:01:30]} (19. e5 $1 $16) 19... Qh5 $11 {
[%emt 0:02:18]} 20. Bg3 {[%emt 0:00:12][%cal Yh4g3,Yg3f2,Yf2d4]} Nf6 {[%emt 0:
02:49]} 21. Qd3 {[%emt 0:00:59]} Qc5 {[%emt 0:01:10]} 22. Qd2 {[%emt 0:00:00]}
Rad8 {[%emt 0:01:31]} 23. Bf2 {[%emt 0:00:53]} Qh5 {[%emt 0:00:32]} 24. Bd4 {
[%emt 0:02:15]} Ng4 {[%emt 0:00:56][%csl Gg4][%cal Rh5h2]} 25. h3 {[%emt 0:00:
12] Threatens to win with Bxg7.} Nf6 {[%emt 0:00:13]} 26. Qd3 {[%emt 0:02:22]}
g5 {[%emt 0:00:37]} (26... Qh4 $11 {remains equal.}) 27. fxg5 $16 {[%emt 0:00:
33]} (27. Qxa6 $2 Bxh3 $1 28. Kg1 Bc8 $19) 27... hxg5 {[%emt 0:00:19]} 28. Rf1
{[%emt 0:00:15]} (28. Qxa6 Bxh3 $1 29. Qd3 Bc8+ 30. Kg1 Ng4 $19) 28... Qg6 {
[%emt 0:01:18]} 29. Bxf6 {[%emt 0:00:00] White is more active.} ({Don't play} 
29. Qxa6 Re7 $16) 29... Bxf6 {[%emt 0:00:00] [#]} 30. e5 {[%emt 0:01:55]} ({
Much worse is} 30. Qxa6 $6 Rf8 $11) (30. Rxf6 $1 $16 Qxf6 31. Rf1) 30... Qxd3
$14 {[%emt 0:00:48]} 31. cxd3 {[%emt 0:00:04]} Bxe5 {[%emt 0:00:14] And now ...
d5 would win.} 32. Bxf7+ {[%emt 0:00:11]} Kg7 {[%emt 0:00:08] ...Re7 is the
strong threat.} 33. Bxe8 {[%emt 0:00:04]} Rxe8 {[%emt 0:00:08]} 34. Ne4 {
[%emt 0:02:04]} g4 {[%emt 0:00:00]} 35. Nf2 {[%emt 0:00:49]} Rh8 {[%emt 0:01:
03]} 36. b4 {[%emt 0:01:06]} gxh3 {[%emt 0:00:31]} 37. Nxh3 {[%emt 0:00:19]}
Bxh3 {[%emt 0:00:33] The position is equal.} 38. gxh3 {[%emt 0:00:04]} Rxh3+
$11 {[%emt 0:00:05] Endgame KRR-KRB} 39. Kg2 {[%emt 0:00:03]} Rg3+ {[%emt 0:00:
38]} 40. Kf2 {[%emt 0:00:04][%cal Yd3d4] Hoping for d4!} Rxd3 {[%emt 0:00:14]}
41. Rfc1 {[%emt 0:31:34]} Rxa3 {[%emt 0:03:56]} 42. Rxc6 {[%emt 0:00:00]} Bd4+
{[%emt 0:00:00]} 43. Ke2 {[%emt 0:00:00] White has compensation.} Bb6 {[%emt 0:
01:14]} 44. Rf1 {[%emt 0:00:00]} Rg3 {[%emt 0:00:59]} 45. Rc4 {[%emt 0:00:00]}
a5 {[%emt 0:04:01]} 46. b5 {[%emt 0:00:00]} Rg5 {[%emt 0:15:11]} 47. Rcf4 {
[%emt 0:00:00]} Rxb5 {[%emt 0:02:46] Weighted Error Value: White=0.12 (very
precise) /Black=0.15 (very precise)} 1/2-1/2

[Event "44th Chess Olympiad Open 2022"]
[Site "Chennai"]
[Date "2022.08.06"]
[Round "8.35"]
[White "Lee, Jun Hyeok"]
[Black "Hernandez Guerrero, Gilberto"]
[Result "0-1"]
[WhiteElo "2390"]
[BlackElo "2560"]
[Annotator "TA"]
[PlyCount "64"]
[EventDate "2022.??.??"]
[TimeControl "60"]

{[%evp 16,64,18,20,61,54,59,58,83,78,102,75,82,76,79,29,26,23,40,21,25,0,26,3,
7,8,64,-13,52,43,39,0,89,0,7,17,45,48,55,-229,-229,-423,-261,-589,-579,-1285,
-1245,-29985,-29986,-29985,-29986]} 1. d4 {[%emt 0:00:06]} Nf6 {[%emt 0:00:31]}
2. c4 {[%emt 0:00:08]} e6 {[%emt 0:03:30]} 3. Nc3 {[%emt 0:00:13]} Bb4 {
[%emt 0:00:08]} 4. e3 {[%emt 0:00:58]} b6 {[%emt 0:01:15]} 5. Bd3 {[%emt 0:00:
00]} Bb7 {[%emt 0:01:28]} 6. Nf3 {[%emt 0:00:11]} Ne4 {[%emt 0:00:39]} 7. O-O {
[%emt 0:00:51]} Bxc3 {[%emt 0:01:00]} 8. bxc3 {[%emt 0:00:06]} f5 {[%emt 0:00:
00]} 9. Nd2 {[%emt 0:07:50] [#]} Nf6 $146 {[%emt 0:04:34] E43: Nimzo-Indian:
Rubinstein: 4...b6.} ({Predecessor:} 9... Qg5 10. f4 Qg6 11. Nxe4 Bxe4 12. Bxe4
fxe4 13. Ba3 Nc6 14. d5 Na5 15. Qa4 h5 16. Rad1 h4 17. h3 {½-½ (45)
Moiseenko,A (2620)-Braun,A (2605) Chess.com INT 2020}) 10. Ba3 {[%emt 0:08:11]}
d6 {[%emt 0:11:06][%cal Yd7d6,Yd6c5]} 11. Qc2 {[%emt 0:02:47]} Nbd7 {[%emt 0:
09:43] White is slightly better.} 12. e4 {[%emt 0:02:12]} g6 {[%emt 0:00:00]}
13. c5 {[%emt 0:14:42]} dxc5 {[%emt 0:05:05]} 14. exf5 {[%emt 0:00:51]} exf5 {
[%emt 0:01:38]} 15. Rfe1+ {[%emt 0:01:35]} (15. dxc5 $16 Kf7 16. Rfe1) 15...
Kf7 $1 $11 {[%emt 0:00:31]} 16. Bc4+ {[%emt 0:14:23]} Kg7 {[%emt 0:00:24]} 17.
Nb3 {[%emt 0:00:56]} Re8 {[%emt 0:05:00]} 18. dxc5 {[%emt 0:10:31] Black must
now prevent Nd4.} (18. Rad1 $5 {[%cal Rc2c1]}) 18... Be4 {[%emt 0:10:47]} (
18... Ne5 $5 {[%cal Re5c4]} 19. Bb5 Be4 $11) 19. Qb2 {[%emt 0:02:39]} Ne5 {
[%emt 0:03:02]} 20. Bf1 {[%emt 0:00:07]} Nfg4 {[%emt 0:20:20]} (20... Nd3 $11
21. Bxd3 Qxd3) 21. c4 {[%emt 0:19:05]} (21. h3 $14 Qh4 22. Nd4 (22. f3 Qg3 23.
Bb5 Nxf3+ 24. Kf1 Bd3+ 25. Bxd3 Ngh2#)) 21... Kg8 {[%emt 0:02:03]} (21... Qg5
$1 $11 22. Qc3 (22. f3 Bxf3 23. gxf3 Nf6+ 24. Kf2 Qf4 $15) 22... Kg8) 22. h3
$14 {[%emt 0:00:40]} Qh4 {[%emt 0:03:51][%cal Ya8d8]} 23. Rad1 {[%emt 0:06:04]}
(23. f3 $2 Qg3 $1 24. Qxe5 Nxe5 $19) (23. Nd4 $5 {[%cal Rf2f3]}) 23... Rad8 {
[%emt 0:07:58]} 24. cxb6 {[%emt 0:00:50]} ({White should try} 24. Nd4 $1 $16)
24... Rxd1 {[%emt 0:00:33] The board is on fire.} (24... cxb6 25. c5 $16) (
24... axb6 $5 {[%cal Rg4h2]} 25. c5 Nh2 26. Kxh2 (26. Rxd8 $2 Nhf3+ 27. Kh1
Rxd8 $19) 26... Nf3+ 27. gxf3 Qf4+ 28. Kg1 Qg5+ 29. Kh1 (29. Kh2 Qf4+ 30. Kg1
Qg5+ 31. Kh1 Bxf3+ 32. Kh2 Qf4+ 33. Kg1 Qg5+ 34. Kh2 Qf4+ 35. Kg1 Qg5+ 36. Kh2
$11) 29... Bxf3+ 30. Kh2 Qf4+ 31. Kg1 Qg5+ 32. Kh2 Qf4+ 33. Kg1 Qg5+ 34. Kh2
$11) 25. Rxd1 {[%emt 0:00:16]} axb6 {[%emt 0:00:51][%cal Yg4h2] Strongly
threatening ...Nh2!} 26. c5 {[%emt 0:01:01] Hoping for cxb6.} b5 {[%emt 0:00:
00]} 27. Qd2 $2 {[%emt 0:03:04] Loses the game.} (27. Na5 $14 Nf6 28. Qxb5)
27... Qxh3 $1 $40 {[%emt 0:02:18][%csl Gg4][%cal Rh3h2] Black attacks with
force.} 28. Qf4 {[%emt 0:00:45] Against Qh2+} (28. Qd5+ {is a better defense.}
Bxd5 29. gxh3 Nf3+ 30. Kg2) 28... Qh5 {[%emt 0:01:13]} 29. Bxb5 $2 {[%emt 0:00:
16] [#]} (29. f3 {[#]} Nxf3+ $1 30. gxf3 Bxf3 $1 31. Bc4+ bxc4 32. Qxf3 Qh2+
33. Kf1 Ne3+ 34. Ke1 cxb3 35. axb3 Qg1+ 36. Kd2 Nxd1) (29. Bb2) 29... Nxf2 $1 {
[%emt 0:00:56]} 30. Kxf2 {[%emt 0:00:31]} (30. Qxf2 Qxd1+) 30... Qxd1 {[%emt 0:
00:18]} 31. Be2 {[%emt 0:01:26]} Nd3+ {[%emt 0:01:00]} 32. Bxd3 {[%emt 0:00:10]
} Bxd3 {[%emt 0:00:00] Weighted Error Value: White=0.96/Black=0.26 (precise)}
0-1

[Event "44th Chess Olympiad Open 2022"]
[Site "Chennai"]
[Date "2022.08.06"]
[Round "8.35"]
[White "Ahn, Hongjin"]
[Black "Diaz Rosas, Julio Cesar"]
[Result "1/2-1/2"]
[WhiteElo "2303"]
[BlackElo "2328"]
[Annotator "RC"]
[PlyCount "111"]
[EventDate "2022.??.??"]
[TimeControl "60"]

1. c4 {[%emt 0:00:03]} e6 {[%emt 0:01:56]} 2. Nc3 {[%emt 0:00:10]} d5 {[%emt 0:
00:00]} 3. d4 {[%emt 0:00:06]} Nf6 {[%emt 0:01:22]} 4. Nf3 {[%emt 0:00:24]}
dxc4 {[%emt 0:03:08]} 5. Qa4+ {[%emt 0:00:20]} c6 {[%emt 0:07:21]} 6. Qxc4 {
[%emt 0:00:03]} b5 {[%emt 0:00:12]} 7. Qb3 {[%emt 0:00:06]} Nbd7 {[%emt 0:00:
00]} 8. g3 {[%emt 0:00:39]} Bd6 {[%emt 0:05:51]} 9. Bg2 {[%emt 0:03:28]} O-O {
[%emt 0:00:11]} 10. Ng5 {[%emt 0:01:27]} Nd5 {[%emt 0:05:05]} 11. Nxd5 {
[%emt 0:15:09]} exd5 {[%emt 0:01:16]} 12. O-O {[%emt 0:03:09]} h6 {[%emt 0:00:
00]} 13. Nf3 {[%emt 0:02:23]} Re8 {[%emt 0:00:11]} 14. Qc2 {[%emt 0:01:53]} Qb6
{[%emt 0:06:14]} 15. Bf4 {[%emt 0:01:15]} Bf8 {[%emt 0:20:40]} 16. Rfd1 {
[%emt 0:07:39]} Nf6 {[%emt 0:07:45]} 17. Rac1 {[%emt 0:03:08]} Bb7 {[%emt 0:00:
00]} 18. Ne5 {[%emt 0:02:47]} Rac8 {[%emt 0:03:36]} 19. Bh3 {[%emt 0:01:06]} c5
{[%emt 0:00:15]} 20. Bxc8 {[%emt 0:28:44]} Rxc8 {[%emt 0:00:08]} 21. Qf5 {
[%emt 0:08:45]} c4 {[%emt 0:05:15]} 22. h4 {[%emt 0:01:42]} Re8 {[%emt 0:04:51]
} 23. Qh3 {[%emt 0:01:23]} Bc8 {[%emt 0:01:29]} 24. Qg2 {[%emt 0:00:21]} Be6 {
[%emt 0:02:52]} 25. f3 {[%emt 0:04:22]} Nh5 {[%emt 0:03:18]} 26. Be3 {[%emt 0:
00:00]} f6 {[%emt 0:05:27]} 27. g4 {[%emt 0:00:23]} fxe5 {[%emt 0:01:09]} 28.
gxh5 {[%emt 0:00:05]} Bf5 {[%emt 0:01:40]} 29. Qf2 {[%emt 0:05:27]} e4 {
[%emt 0:01:59]} 30. Kh1 {[%emt 0:02:10]} exf3 {[%emt 0:02:09]} 31. exf3 {
[%emt 0:00:05]} Bd3 {[%emt 0:03:10]} 32. Re1 {[%emt 0:01:13]} Re7 {[%emt 0:00:
00]} 33. Bf4 {[%emt 0:03:02]} Rf7 {[%emt 0:00:05]} 34. Be5 {[%emt 0:00:51]} Rf5
{[%emt 0:01:38]} 35. Qg3 {[%emt 0:00:02]} Qb7 {[%emt 0:00:55]} 36. Re3 {
[%emt 0:00:21]} Qf7 {[%emt 0:00:16]} 37. Kg2 {[%emt 0:01:15]} Rxh5 {[%emt 0:00:
00]} 38. Kf2 {[%emt 0:00:38]} Rf5 {[%emt 0:00:17]} 39. Qg4 {[%emt 0:00:30]} Kh7
{[%emt 0:00:20]} 40. Rxd3 {[%emt 0:00:29]} h5 {[%emt 0:02:11]} 41. Qg3 {
[%emt 0:02:07]} cxd3 {[%emt 0:01:07]} 42. Rg1 {[%emt 0:07:00]} Qe6 {[%emt 0:00:
00]} 43. f4 {[%emt 0:01:15]} g6 {[%emt 0:04:08]} 44. Qxd3 {[%emt 0:04:36]} Be7
{[%emt 0:01:33]} 45. Qg3 {[%emt 0:07:01]} Qc6 {[%emt 0:01:51]} 46. Kg2 {
[%emt 0:00:43]} Qc2+ {[%emt 0:01:34]} 47. Kh3 {[%emt 0:00:20]} Rf7 {[%emt 0:00:
00]} 48. Qg2 {[%emt 0:01:58]} Qc6 {[%emt 0:06:13]} 49. Qg3 {[%emt 0:01:06]} a5
{[%emt 0:05:45]} 50. Kh2 {[%emt 0:01:01]} b4 {[%emt 0:01:16]} 51. Rf1 {[%emt 0:
00:00]} Qc2+ {[%emt 0:00:31]} 52. Rf2 {[%emt 0:00:06]} Qe4 {[%emt 0:01:17]} 53.
Qh3 {[%emt 0:01:51]} Rf5 {[%emt 0:01:32]} 54. Qg3 {[%emt 0:01:29]} Rf7 {
[%emt 0:00:42]} 55. Qh3 {[%emt 0:00:10]} Rf5 {[%emt 0:00:06]} 56. Qg3 {[%emt 0:
00:00]} 1/2-1/2

[Event "44th Chess Olympiad Open 2022"]
[Site "Chennai"]
[Date "2022.08.06"]
[Round "8.35"]
[White "Montes Orozco, Miguel Angel"]
[Black "Li, Georgiy"]
[Result "0-1"]
[WhiteElo "2070"]
[BlackElo "1994"]
[Annotator "NA RC"]
[PlyCount "104"]
[EventDate "2022.??.??"]
[TimeControl "60"]

1. d4 {[%emt 0:00:04]} Nf6 {[%emt 0:00:24]} 2. c4 {[%emt 0:00:06]} e6 {[%emt 0:
00:00]} 3. Nf3 {[%emt 0:00:06]} d5 {[%emt 0:00:13]} 4. Nc3 {[%emt 0:00:07]} Be7
{[%emt 0:00:44]} 5. Bf4 {[%emt 0:00:17]} O-O {[%emt 0:00:25]} 6. e3 {[%emt 0:
00:00]} b6 {[%emt 0:01:33]} 7. cxd5 {[%emt 0:00:14]} Nxd5 {[%emt 0:00:43]} 8.
Nxd5 {[%emt 0:00:12]} exd5 {[%emt 0:03:06]} 9. Bd3 {[%emt 0:00:15]} c5 {
[%emt 0:02:49]} 10. Ne5 {[%emt 0:16:07]} Bf6 {[%emt 0:11:52]} 11. Qc2 {[%emt 0:
00:00]} h6 {[%emt 0:01:15]} 12. dxc5 {[%emt 0:02:26]} Qe7 {[%emt 0:01:52]} 13.
Nf3 {[%emt 0:07:37]} bxc5 {[%emt 0:00:27]} 14. O-O {[%emt 0:02:38]} Nc6 {
[%emt 0:00:39]} 15. a3 {[%emt 0:00:15]} Bg4 {[%emt 0:04:16]} 16. Rac1 {[%emt 0:
00:00]} c4 {[%emt 0:02:50]} 17. Be2 {[%emt 0:02:04]} Na5 {[%emt 0:01:27]} 18.
Rcd1 {[%emt 0:13:30]} Rfd8 {[%emt 0:09:36]} 19. Bg3 {[%emt 0:03:25]} Bh5 {
[%emt 0:03:30]} 20. Nd4 {[%emt 0:00:26]} Bg6 {[%emt 0:00:37]} 21. Qc3 {[%emt 0:
00:00]} Nb3 {[%emt 0:01:42]} 22. Rfe1 {[%emt 0:00:27]} Nc5 {[%emt 0:02:44]} 23.
Qa5 {[%emt 0:03:47]} Rac8 {[%emt 0:02:44]} 24. Bg4 {[%emt 0:01:59]} Ne6 {
[%emt 0:02:51]} 25. Qa6 {[%emt 0:03:35]} Re8 {[%emt 0:01:35]} 26. Nc6 {[%emt 0:
00:00]} Qc5 {[%emt 0:07:13]} 27. Ne5 {[%emt 0:00:05]} Bxe5 {[%emt 0:01:20]} 28.
Bxe5 {[%emt 0:00:08]} Rc6 {[%emt 0:01:32]} 29. Qa4 {[%emt 0:00:46]} a6 {
[%emt 0:08:30]} 30. h4 {[%emt 0:02:51]} Be4 {[%emt 0:04:49]} 31. Rd2 {[%emt 0:
00:00]} Rd8 {[%emt 0:02:19]} 32. Qd1 {[%emt 0:01:19]} Qe7 {[%emt 0:00:51]} 33.
Bxe6 {[%emt 0:06:55]} Rxe6 {[%emt 0:00:41]} 34. Bg3 {[%emt 0:00:05]} Bd3 {
[%emt 0:02:08]} 35. Qg4 {[%emt 0:01:33]} d4 {[%emt 0:02:04]} 36. Bf4 {[%emt 0:
00:00]} Rg6 {[%emt 0:00:46]} 37. Qh3 {[%emt 0:00:20]} Qf6 {[%emt 0:05:25]} 38.
h5 {[%emt 0:01:18]} Bf5 {[%emt 0:03:14]} 39. Qh2 {[%emt 0:00:01]} Rg4 {[%emt 0:
00:00]} 40. exd4 {[%emt 0:00:55]} Bd3 {[%emt 0:02:56]} 41. Be5 {[%emt 0:00:32]}
Qg5 {[%emt 0:31:18]} 42. f4 {[%emt 0:10:10]} Qf5 {[%emt 0:00:00]} 43. Qh3 {
[%emt 0:00:45]} f6 {[%emt 0:00:00]} 44. Bc7 {[%emt 0:01:43]} Rxd4 {[%emt 0:00:
00]} 45. Re8+ {[%emt 0:00:32]} Kh7 {[%emt 0:00:00]} 46. Qe3 {[%emt 0:00:26]}
Rd7 {[%emt 0:00:00]} 47. Rc8 {[%emt 0:07:11]} Qxh5 {[%emt 0:00:00]} 48. Qe6 {
[%emt 0:00:27]} Rf7 {[%emt 0:00:00]} 49. Rxd3 {[%emt 0:02:28]} cxd3 {[%emt 0:
00:00]} 50. Qe4+ {[%emt 0:00:02]} Qg6 {[%emt 0:00:00]} 51. Qxg6+ {[%emt 0:00:
00]} Kxg6 {[%emt 0:00:00]} 52. Ba5 {[%emt 0:00:04]} Re7 {[%emt 0:00:00]} 0-1

[Event "44th Chess Olympiad Open 2022"]
[Site "Chennai"]
[Date "2022.08.06"]
[Round "8.36"]
[White "Petkov, Momchil"]
[Black "Wanyama, Harold"]
[Result "1/2-1/2"]
[WhiteElo "2510"]
[BlackElo "2242"]
[Annotator "TA"]
[PlyCount "73"]
[EventDate "2022.??.??"]
[TimeControl "60"]

{[%evp 9,73,0,24,16,34,31,25,32,34,24,35,34,41,30,28,30,32,24,30,24,31,27,32,
33,47,29,33,34,47,43,55,29,36,10,10,8,47,24,91,93,97,106,96,95,113,113,104,91,
90,89,82,85,149,3,3,0,8,5,1,0,0,0,0,0,0,0]} 1. e4 {[%emt 0:00:11]} c6 {[%emt 0:
00:00]} 2. Nc3 {[%emt 0:01:14]} d5 {[%emt 0:00:14]} 3. Nf3 {[%emt 0:00:10]} Bg4
{[%emt 0:00:20]} 4. Be2 {[%emt 0:00:40][%cal Yf1e2,Ye2f3,Yf3e4]} Nf6 {[%emt 0:
00:54]} 5. h3 {[%emt 0:02:24]} Bxf3 {[%emt 0:01:47]} 6. Bxf3 {[%emt 0:00:00]
B11: Caro-Kann: Two Knights Variation.} dxe4 {[%emt 0:00:39]} 7. Nxe4 {[%emt 0:
00:12]} Nxe4 {[%emt 0:00:15]} 8. Bxe4 {[%emt 0:00:07] White has an edge.} Nd7 {
[%emt 0:00:10]} 9. O-O {[%emt 0:02:24] [#]} g6 $146 {[%emt 0:00:31]} ({
Predecessor:} 9... Nf6 10. Bf3 e6 11. Re1 Qc7 12. d4 h6 13. c3 Bd6 14. Be3 a5
15. a4 O-O {0-1 (44) Ganerdene,S (2109)-Nguyen,H (1840) Tornelo INT 2021}) 10.
d4 {[%emt 0:05:58]} Bg7 {[%emt 0:00:14]} 11. a4 {[%emt 0:02:07]} a5 {[%emt 0:
00:46]} 12. c3 {[%emt 0:05:12]} O-O {[%emt 0:00:51]} 13. g3 {[%emt 0:00:00]}
Nf6 {[%emt 0:10:50]} 14. Bg2 {[%emt 0:00:32]} Nd5 {[%emt 0:00:13]} 15. Qb3 {
[%emt 0:04:21]} b6 {[%emt 0:04:08]} 16. Bd2 {[%emt 0:01:27]} Qd6 {[%emt 0:00:
00]} 17. Rad1 {[%emt 0:01:51]} Rac8 {[%emt 0:01:46]} 18. Rfe1 {[%emt 0:00:00]}
e6 {[%emt 0:00:28]} 19. h4 {[%emt 0:00:25][%cal Yh4h5]} Rfd8 {[%emt 0:00:00]}
20. Bg5 {[%emt 0:02:21]} (20. h5 $5) 20... Rd7 {[%emt 0:02:00]} 21. Bxd5 {
[%emt 0:12:00]} cxd5 {[%emt 0:01:24]} 22. h5 {[%emt 0:00:03]} gxh5 {[%emt 0:00:
00]} 23. Rd3 {[%emt 0:06:06]} (23. Bf4 $5 {[%cal Rf4d6]} Qe7 24. Qxb6 $14)
23... e5 {[%emt 0:04:51] Inhibits Bf4.} (23... f6 $11 {remains equal.} 24. Bc1
h4) 24. dxe5 $16 {[%emt 0:04:11]} Bxe5 {[%emt 0:08:51]} 25. Qd1 {[%emt 0:02:01]
} Bg7 {[%emt 0:02:01]} 26. Qxh5 {[%emt 0:06:08] And now Rde3 would win.} Qg6 {
[%emt 0:02:16]} 27. Qh3 {[%emt 0:02:33] White is more active.} f5 {[%emt 0:00:
00]} 28. Bf4 {[%emt 0:00:39]} Rc4 {[%emt 0:00:26][%csl Ya4,Yf4] ...Rxf4 is the
strong threat.} 29. Qg2 {[%emt 0:04:39]} Re4 {[%emt 0:02:20]} 30. Red1 {
[%emt 0:00:04]} Rde7 {[%emt 0:00:36] [#]} ({Black should try} 30... d4) 31. Be3
{[%emt 0:01:08]} ({Wrong is} 31. Rxd5 $2 Re1+ 32. Rxe1 Rxe1+ 33. Kh2 Qh5+ 34.
Qh3 {[#]} Rh1+ $3 35. Kxh1 Qxh3+ $19) (31. Qf3 $1 $16) 31... Bh6 $1 $11 {
[%emt 0:01:40] The position is equal.} 32. Kf1 {[%emt 0:05:35]} Bxe3 {[%emt 0:
03:29]} 33. Rxe3 {[%emt 0:00:05]} Qe6 {[%emt 0:03:11]} 34. Qf3 {[%emt 0:01:16]}
Rxe3 {[%emt 0:15:00]} 35. fxe3 {[%emt 0:00:06]} Qxe3 {[%emt 0:00:00]} 36. Qxe3
{[%emt 0:00:27]} Rxe3 {[%emt 0:00:14]} 37. Rxd5 {[%emt 0:00:00] Weighted Error
Value: White=0.13 (very precise) /Black=0.10 (very precise)} 1/2-1/2